Cogmind - Beta 9.6 @@@ ROGUE MODE // 2020.05.23 @ 14:59:40 Player: StrongCobra Result: Destroyed by Y-45 Defender with Beam Rifle Performance ------------- Evolutions (1) 500 Regions Visited (2) 400 Robots Destroyed (40) 200 Value Destroyed (1121) 1121 Prototype IDs (0) 0 Alien Tech Used (0) 0 Bonus (0) 0 TOTAL SCORE: 2221 Bonus ------- None Cogmind --------- Core Integrity 0/400 Matter 245/300 Energy 160/160 System Corruption 0% Temperature Cool (9) Movement Core (200) Ox3 Location -9/Materials Parts ------- > --- POWER (2) -------- Light Nuclear Core > --- PROPULSION (2) --- (None) > --- UTILITY (3) ------ Heat Sink Improved Power Shielding > --- WEAPON (2) ------- Autogun > --- INVENTORY (4) ---- (None) Peak State ------------ > --- POWER ------------ Light Nuclear Core Light Nuclear Core > --- PROPULSION ------- Light Treads Improved Treads > --- UTILITY ---------- Heat Sink Heat Sink Improved Power Shielding > --- WEAPON ----------- Heavy EM Pulse Gun Heavy EM Pulse Gun > --- INVENTORY -------- Light Nuclear Core Heat Sink EMP Blaster [Rating: 18] Favorites ----------- Power Ion Engine Engine Ion Engine Power Core Light Nuclear Core Propulsion Aluminum Leg Treads Improved Treads Leg Aluminum Leg Utility Heat Sink Device Heat Sink Protection Light Armor Plating Weapon Heavy EM Pulse Gun Energy Gun Heavy EM Pulse Gun Energy Cannon Particle Cannon Ballistic Gun Light Assault Rifle Launcher Grenade Launcher Build | -11 -10 -9 ------- Run | Scr Mat Mat Slots Evolved 2 | . . 2 Power 1 | . . 1 Propulsion . | . . . Utility 1 | . . 1 Weapon . | . . . Parts Attached 39 | 6 6 27 Power 8 | 1 1 6 Engine 5 | 1 1 3 Core 3 | . . 3 Reactor . | . . . Propulsion 7 | 2 . 5 Treads 4 | . . 4 Leg 3 | 2 . 1 Wheel . | . . . Hover . | . . . Flight . | . . . Utility 11 | . 2 9 Device 6 | . . 6 Storage . | . . . Processor . | . . . Hackware . | . . . Protection 5 | . 2 3 Artifact . | . . . Weapon 13 | 3 3 7 Energy Gun 6 | 1 . 5 Energy Cannon 1 | . 1 . Ballistic Gun 4 | 2 1 1 Ballistic Cannon . | . . . Launcher 2 | . 1 1 Special Weapon . | . . . Impact Weapon . | . . . Slashing Weapon . | . . . Piercing Weapon . | . . . Special Melee Weapon . | . . . Unidentified Prototypes . | . . . Parts Lost 20 | . . 20 Power 3 | . . 3 Propulsion 3 | . . 3 Utility 7 | . . 7 Weapon 7 | . . 7 Highest Loss Streak 11 | . . 11 Average Slot Usage (%) 91 | . 96 88 Engine 12 | . 14 11 Core 5 | . . 9 Treads 10 | . . 17 Leg 12 | . 28 4 Device 12 | . . 20 Protection 14 | . 26 8 Energy Gun 8 | . . 13 Energy Cannon 4 | . 8 2 Ballistic Gun 3 | . 8 . Launcher 4 | . 9 1 Naked Turns . | . . . Heaviest Build 22 | 6 16 22 Greatest Support 46 | 20 20 46 Greatest Overweight (x) 5 | . . 5 Average Overweight (x) . | . . . Largest Inventory Capacity 4 | 4 4 4 Average Capacity 4 | 4 4 4 Most Carried 4 | 3 4 4 Average Carried 3 | . 3 3 Final Capacity 4 | 4 4 4 Final Carried 4 | 2 4 . Class Distribution -------------------- 100% | Mutant Dominant Class ---------------- Mutant | -10/Materials Mutant | -9/Materials Resources | -11 -10 -9 ----------- Run | Scr Mat Mat Matter Collected 601 | 272 104 225 Remotely 43 | . . 43 Salvage Created 1371 | 49 451 871 Parts 97 | 2 35 60 Haulers Intercepted . | . . . Recyclers Shooed . | . . . Parts Field Recycled . | . . . Retrieved Matter . | . . . Parts Self-Destructed . | . . . Prevented . | . . . Kills | -11 -10 -9 ------- Run | Scr Mat Mat Combat Hostiles Destroyed 31 | 1 9 21 Guns 14 | 1 2 11 Cannons 15 | . 7 8 AOE 2 | . . 2 Classes Destroyed 7 | 1 2 4 Worker 2 | . . 2 Builder 1 | . 1 . Watcher 6 | . 3 3 Swarmer 6 | . . 6 Grunt 20 | 1 9 10 Brawler 1 | . . 1 Sentry 4 | . . 4 Best Kill Streak 4 | 1 3 4 Combat Bots Only 4 | 1 3 4 Max Kills in Single Turn 2 | 1 1 2 Gunslinging 1 | . . 1 Exploded 1 | . . 1 Melee . | . . . Uniques/NPCs Destroyed . | . . . Combat | -11 -10 -9 -------- Run | Scr Mat Mat Damage Taken 2733 | 22 467 2244 Core 546 | 22 117 407 Absorbed by Shields . | . . . Core Remaining (%) 67 | 91 44 . Volleys Fired 121 | 4 48 69 Largest 2 | 1 2 2 Hottest 108 | 20 68 108 Shots Fired 165 | 4 70 91 Gun 108 | 4 44 60 Cannon 47 | . 23 24 Launcher 10 | . 3 7 Special . | . . . Kinetic 53 | 4 44 5 Thermal 49 | . 23 26 Explosive 5 | . 3 2 Electromagnetic 58 | . . 58 Robot Hit Streak 15 | 2 6 15 Robot Miss Streak 4 | 2 4 3 Penetration Max . | . . . Secondary Targets 2 | . . 2 Max Gunslinging Chain 1 | . . 1 Shots Hit Robots 101 | 2 41 58 Core Hits 58 | 1 20 37 Critical Hits . | . . . Critical Kills . | . . . Critical Parts Destroyed . | . . . Melee Attacks . | . . . Impact . | . . . Slashing . | . . . Piercing . | . . . Sneak Attacks . | . . . Combat Hostiles . | . . . Follow-up Attacks . | . . . Damage Inflicted 2027 | 27 623 1377 Guns 861 | 27 181 653 Cannons 678 | . 371 307 Explosions 486 | . 71 415 Melee . | . . . Ramming 2 | . . 2 Kinetic 280 | 27 181 72 Thermal 846 | . 371 475 Explosive 298 | . 71 227 Electromagnetic 601 | . . 601 Impact . | . . . Slashing . | . . . Piercing . | . . . Highest Corruption . | . . . Average Corruption . | . . . Corruption Purged . | . . . Overload Shots . | . . . Overflow Damage 7 | . . 7 Projectiles 1 | . . 1 Explosions 6 | . . 6 Melee . | . . . Knockbacks . | . . . Impact . | . . . Kinetic . | . . . Secondary . | . . . Self-Inflicted Damage . | . . . Shots . | . . . Rammed 1 | . . 1 Targets Rammed 1 | . . 1 Kicked . | . . . Crushed . | . . . Highest Temperature 274 | . 274 150 Average Temperature 54 | . 68 32 Received Heat Transfer 957 | 12 261 684 Siege Activations . | . . . Robots Corrupted . | . . . Combat Hostiles . | . . . Parts Fried 3 | . . 3 Impact Corruptions . | . . . Robots Melted . | . . . Combat Hostiles . | . . . Parts Melted 1 | . 1 . Heat Transferred 1445 | . 666 779 Parts Sabotaged . | . . . Parts Stolen . | . . . Parts Stripped . | . . . Power Chain Reactions 2 | . . 2 Missiles Intercepted . | . . . Alert | -11 -10 -9 ------- Run | Scr Mat Mat Peak Influence 250 | 20 158 250 Average Influence 68 | 5 65 74 Maximum Alert Level 1 | . . 1 Low Security (%) 98 | 100 100 96 Level 1 1 | . . 3 Level 2 . | . . . Level 3 . | . . . Level 4 . | . . . Level 5 . | . . . High Security . | . . . Max Security . | . . . Squads Dispatched 4 | . 2 2 Investigation 1 | . 1 . Extermination . | . . . Reinforcement 3 | . 1 2 Assault . | . . . Garrison . | . . . Intercept . | . . . Construction Impeded 1 | . . 1 Haulers Reinforced . | . . . Stealth | -11 -10 -9 --------- Run | Scr Mat Mat Distress Signals 5 | . 3 2 Communications Jammed . | . . . Distress Signals . | . . . Times Spotted 56 | 1 17 38 Peak Tracking Total 7 | 1 5 7 Tactical Retreats 4 | . 2 2 Traps | -11 -10 -9 ------- Run | Scr Mat Mat Traps Triggered . | . . . Indirectly . | . . . Trap Hack Attempts . | . . . Triggered . | . . . Disarmed 6 | . . 6 Reprogrammed . | . . . Reused . | . . . Traps Extracted . | . . . Installed . | . . . Triggered . | . . . Machines | -11 -10 -9 ---------- Run | Scr Mat Mat Machines Disabled 1 | . 1 . Max in Single Turn 1 | . 1 . Machines Sabotaged . | . . . Garrisons Compromised . | . . . Overloaded Fab Kills . | . . . Fab Network Shutdowns . | . . . Hacking | -11 -10 -9 --------- Run | Scr Mat Mat Machines Accessed 12 | . 9 3 Terminals 9 | . 7 2 Fabricators . | . . . Repair Stations 1 | . . 1 Recycling Units 2 | . 2 . Scanalyzers . | . . . Garrison Access . | . . . Total Hacks 31 | . 26 5 Successful 21 | . 18 3 Failed 10 | . 8 2 Catastrophic 1 | . . 1 Database Lockouts . | . . . Manual 2 | . 2 . Terminals 25 | . 22 3 Fabricators . | . . . Repair Stations 2 | . . 2 Recycling Units 4 | . 4 . Scanalyzers . | . . . Garrison Access . | . . . Terminal Hacks 15 | . 14 1 Record 7 | . 7 . Alert Level 2 | . 2 . Locate Traps 1 | . 1 . Disarm Traps 1 | . . 1 Dispatch Records 1 | . 1 . Surveillance Status 1 | . 1 . Hauler Manifests 1 | . 1 . Registered Prototypes 1 | . 1 . Fabricator Hacks . | . . . Repair Station Hacks 2 | . . 2 Scan Component 1 | . . 1 Repair 1 | . . 1 Recycling Unit Hacks 4 | . 4 . Recycle Component 1 | . 1 . Process 1 | . 1 . Report Inventory 1 | . 1 . Retrieve Matter 1 | . 1 . Scanalyzer . | . . . Garrison Access Hacks . | . . . Unauthorized Hacks . | . . . Terminals . | . . . Fabricators . | . . . Repair Stations . | . . . Recycling Units . | . . . Scanalyzers . | . . . Garrison Access . | . . . Data Cores Recovered . | . . . Used . | . . . Hacking Detections 8 | . 7 1 Full Trace Events 1 | . 1 . Feedback Events . | . . . Feedback Blocked . | . . . Robot Schematics Acquired . | . . . Robots Built . | . . . Matter . | . . . Time . | . . . Total Robot Build Rating . | . . . Part Schematics Acquired . | . . . Parts Built . | . . . Matter . | . . . Time . | . . . Total Part Build Rating . | . . . Parts Repaired 1 | . . 1 Time 32 | . . 32 Parts Recycled 1 | . 1 . Recycled Matter 138 | . 138 . Retrieved Matter 143 | . 143 . Retrieved Components . | . . . Parts Scanalyzed . | . . . Part Schematics Acquired . | . . . Parts Damaged . | . . . Bothacking | -11 -10 -9 ------------ Run | Scr Mat Mat Used RIF Installer . | . . . Robots Hacked . | . . . Non-combat . | . . . Combat . | . . . Robot Hacks Applied . | . . . Relay Couplers Released . | . . . Robots Rewired . | . . . Allies Hacked . | . . . Hacks Repelled . | . . . Allies | -11 -10 -9 -------- Run | Scr Mat Mat Total Allies . | . . . Largest Group . | . . . Highest-Rated Group . | . . . Highest-Rated Ally . | . . . Total Orders . | . . . Ally Attacks . | . . . Total Damage . | . . . Kills . | . . . Allies Corrupted . | . . . Allies Melted . | . . . Intel | -11 -10 -9 ------- Run | Scr Mat Mat Robot Analysis Total . | . . . Derelict Logs Recovered . | . . . Drone Launches . | . . . Drone Recoveries . | . . . Exploration | -11 -10 -9 ------------- Run | Scr Mat Mat Turns Passed 3129 | 148 1082 1899 Spaces Moved 1896 | 107 725 1064 Core 35 | 26 . 9 Treads 822 | . . 822 Legs 1039 | 81 725 233 Wheels . | . . . Hover . | . . . Flight . | . . . Fastest Speed 50 | 50 120 50 Average Speed 137 | 102 120 153 Slowest Speed 300 | 120 120 300 Overloaded Moves . | . . . Propulsion Burnouts . | . . . Robots Hopped . | . . . Cave-ins Triggered . | . . . Exploration Rate (%) 52 | 7 85 64 Regions Visited 2 Branch Regions . Pre-discovered Areas . | . . . Known Exits Taken . | . . . Unknown Exits Taken 2 | 1 1 . Scrap Searched . | . . . Spaces Dug . | . . . Terrain Destroyed 30 | . 12 18 Melee . | . . . Projectile . | . . . AOE 30 | . 12 18 Actions | -11 -10 -9 --------- Run | Scr Mat Mat Total 2270 | 141 878 1251 Wait 144 | 17 87 40 Move 1894 | 106 724 1064 Hop . | . . . Pick Up 48 | 7 9 32 Fast Attach . | . . . Attach 39 | 6 6 27 Detach 1 | 1 . . Swap . | . . . Drop 22 | . 4 18 Fire 121 | 4 48 69 Melee . | . . . Ram . | . . . Kick . | . . . Crush 1 | . . 1 Escape Stasis . | . . . Rewire . | . . . Trap . | . . . Miscellaneous . | . . . Route ------- -11/Scrapyard -10/Materials (discovered 4 exits: *Mat x3 / [*Min]) -9/Materials (discovered 2 exits: [*Mat] / [*Min]) History --------- Turn | Location | Event 2 | -11/Scrapyard | Met Revision 17 94 | -11/Scrapyard | Discovered new exit (range 8) 149 | -11/Scrapyard | Entered Materials 300 | -10/Materials | Build established: Mutant 513 | -10/Materials | Discovered new exit (range 16) 677 | -10/Materials | Discovered new exit (range 10) 897 | -10/Materials | Discovered new exit (range 7) 1119 | -10/Materials | Core integrity fell below 50% 1155 | -10/Materials | Discovered new exit (range 14) 1231 | -10/Materials | Entered another Materials area 1231 | -9/Materials | Evolved 2 slots: Power x1, Utility x1 1406 | -9/Materials | Lost 3 parts (1n2u) 1739 | -9/Materials | Lost 3 parts (2u1w) 1955 | -9/Materials | Discovered new exit (range 3) 2922 | -9/Materials | Repaired Hvy. EM Pulse Gun 2951 | -9/Materials | Discovered new exit (range 6) 3098 | -9/Materials | Core integrity fell below 50% 3124 | -9/Materials | Core integrity fell below 20% 3130 | -9/Materials | Destroyed by Y-45 Defender with Beam Rifle Last Messages --------------- Acquired Particle Gun. U-05 Engineer lays Concrete. [Achievement: Crack Shot] U-05 Engineer lays Concrete. Heat Sink destroyed. Particle Gun destroyed. U-05 Engineer lays Concrete. Imp. Power Shielding destroyed. Lgt. Nuclear Core destroyed. U-05 Engineer lays Concrete. U-05 Engineer builds a Wall. Heat Sink destroyed. U-05 Engineer destroyed. U-05 Engineer lays Concrete. U-05 Engineer builds a Wall. Processing Tank disabled. U-05 Engineer builds a Wall. Acquired Autogun. K-01 Serf collects debris. [Achievement: First Step to Greatness] Map ----- +----------------------------------------------------+ | ?????????????????????????????????????????????????? | | ?????????????????????????????????????????????????? | | ?????????????????????????????????????????????????? | | ?????????????????????????????????????????????????? | | ?????????????????????????????????????????????????? | | ?????????????????????????????????????????????????? | | ?????????????????????????????????????????????????? | | ?????????????????????????????????????????????????? | | ?????????????????????????????????????????????????? | | ?????????????????????????#???????????????????????? | | ???????????????????????? +???????????????????????? | | ??????????????????????? #???????????????????????? | | ?????????????????????? #???????????????????????? | | ?????????????????????# ##??????????????????????? | | ??? ##########+### #??????????????????????? | | ?? #??????????????????????? | | ?? #??????????????????????? | | ?? [% #??????????????????????? | | ????????# #######+### #???##?????????????????? | | ??????????# !*! ########## ####??????????????? | | ######????# ! # #??????????????? | | [ =! #????# =# """"" #??????????????? | | [ *!!#????# %%# """"" +??????????????? | | #????# %%Y """" #??????????????? | | **###????# =u#Y "Y" #??????????????? | | [* #??????# k !/Y @ """ #??????????????? | | #??????# ##############???????????????? | | * #??????#####+#####???##########???????????????? | | ####??????????# #???????# !!#???????????????? | | ??????????????# ######### !!#???????????????? | | ?#######????### # #???????????????? | | ?# #????# # """ #???????????????? | | ?# """ #????# + """ #???????????????? | | ?# """ #????# # """ #???????????????? | | ## """ #????# """ # """ #???????????????? | | # #????# """ ## """ #???????????????? | | # """ #????# """ ## ????????????????? | | + """ ## ??# #########?????????????????? | | # """ ## ### #?????????????????????????? | | # ## ## ####??????????????????????? | | # # # "#??????????????????????? | | # # # ""#??????????????????????? | | # #? # !!#??????????????????????? | | #######?#+## # < ""#??????????????????????? | | #??????????## # !!#??????????????????????? | | #???????????# # ""#??????????????????????? | | #???????????# # "#??????????????????????? | | #???????????# ## ####??????????????????????? | | #???????????# #?????????????????????????? | | #???????????# #?????????????????????????? | +----------------------------------------------------+ Best States ------------- Heat Dissipation 48 Energy Generation 23 Energy Capacity 415 Matter Stores 300 Matter Capacity 300 Sight Range 16 Robot Scan Range 13 Terrain Scan Density 10 Armor Coverage 150 Power Shielding 66 Propulsion Shielding 33 Evasion (%) 50 Recoil Reduction 2 Item Schematics ----------------- None Robot Schematics ------------------ None Fabricated ------------ Nothing Alien Tech Used ----------------- None Achievements -------------- Crack Shot First Step to Greatness Novice Programmer One Hack Too Far Part-time Mechanic Shopping List Uninvited Guest Challenges ------------ None Game ------ Seed BurstSubatomicWell Manual? 0 Play Time 01:02:07 Cumulative 2.0 hours Start 2020.05.23 @ 13:50:50 End 2020.05.23 @ 14:59:40 Sessions 1 Manual Loads 0 Difficulty Rogue Special Mode None Game No. 1 Rogue 1 Adventurer 0 Explorer 0 Win Type - Total 0 Types 0/0/0/0/0/0/0 Lore% 1 Gallery% 2 Achievement% 2 Wizard Run 0 Options --------- ASCII 0 Keyboard 0 Movement Numpad Keybinds 0 Fullscreen 1 Font 24/Smallcaps Map View 76x50 Tactical HUD 0 Map Filters NONE Filters NONE Steam 1 RUN: 7da64c34-67bd-4585-a118-f2e0045f18c9